fUST/lending_fUST_20240419
["ID","MTS","AMOUNT","RATE_DAILY","PERIOD"]
[322925794,1713521452762,-500.0,0.0003041,6]
[322925795,1713521452771,-500.0,0.0003041,6]
[322925796,1713521452780,-500.0,0.0003041,6]
[322925797,1713521452789,-500.0,0.0003041,6]
[322925798,1713521452798,-500.0,0.0003041,6]
[322925799,1713521452806,-500.0,0.0003041,6]
[322925800,1713521452815,-500.0,0.0003041,6]
[322925801,1713521452824,-500.0,0.0003041,6]
[322925802,1713521452836,-500.0,0.0003041,6]
[322925803,1713521452845,-500.0,0.0003041,6]
[322925804,1713521452854,-500.0,0.0003041,6]
[322925805,1713521452863,-524.38177841,0.0003041,6]
[322925806,1713521452873,-503.54,0.0003041,6]
[322925807,1713521452884,-611.76,0.0003041,6]
[322925808,1713521452893,-500.0,0.0003041,6]
[322925809,1713521452903,-1493.79,0.0003041,6]
[322925810,1713521452912,-500.0,0.0003041,6]
[322925811,1713521452923,-500.0,0.0003041,6]
[322925812,1713521452933,-500.0,0.0003041,6]
[322925813,1713521452942,-511.88669154,0.0003041,6]
[322925814,1713521452951,-555.18582283,0.0003041,6]
[322925815,1713521452961,-500.0,0.0003041,6]
[322925816,1713521452969,-500.0,0.0003041,6]
[322925817,1713521452979,-229.21298645,0.0003041,6]
[322925818,1713521452988,-500.0,0.0003041,6]
[322925819,1713521452998,-500.0,0.0003041,6]
[322925820,1713521453007,-1116.0,0.0003041,6]
[322925821,1713521453016,-705.28,0.0003041,6]
[322925822,1713521453025,-500.0,0.0003041,6]
[322925823,1713521453035,-500.0,0.0003041,6]
[322925824,1713521453043,-1441.55,0.0003041,6]
[322925825,1713521453052,-500.0,0.0003041,6]
[322925826,1713521453062,-824.57,0.0003041,6]
[322925827,1713521453188,-1071.4,0.0003041,6]
[322925828,1713521453197,-513.20725033,0.0003041,6]
[322925829,1713521453207,-765.99,0.0003041,6]
[322925830,1713521453216,-500.0,0.0003041,6]
[322925831,1713521453224,-1082.04,0.0003041,6]
[322925832,1713521453234,-500.0,0.0003041,6]
[322925833,1713521453243,-500.0,0.0003041,6]
[322925834,1713521453252,-500.0,0.0003041,6]
[322925835,1713521453261,-150.01348396,0.0003041,6]
[322925836,1713521453271,-500.0,0.0003041,6]
[322925837,1713521453279,-568.13,0.0003041,6]
[322925838,1713521453288,-500.0,0.0003041,6]
[322925839,1713521453297,-518.07540004,0.0003041,6]
[322925840,1713521453306,-841.66,0.0003041,6]
[322925841,1713521453315,-500.0,0.0003041,6]
[322925842,1713521453324,-500.0,0.0003041,6]
[322925843,1713521453335,-505.6987309,0.0003041,6]
[322925844,1713521453344,-512.28242732,0.0003041,6]
[322925845,1713521453353,-500.0,0.0003041,6]
[322925846,1713521453363,-533.07711501,0.0003041,6]
[322925847,1713521453371,-513.95419197,0.0003041,6]
[322925848,1713521453380,-269.1336934,0.0003041,6]
[322925849,1713521453390,-500.0,0.0003041,6]
[322925850,1713521453399,-500.0,0.0003041,6]
[322925851,1713521453408,-500.0,0.0003041,6]
[322925852,1713521453417,-540.16520187,0.0003041,6]
[322925853,1713521453426,-500.0,0.0003041,6]
[322925854,1713521453436,-287.50640749,0.0003041,6]
[322925855,1713521453445,-513.92833814,0.0003041,6]
[322925856,1713521453454,-500.0,0.0003041,6]
[322925857,1713521453463,-500.0,0.0003041,6]
[322925858,1713521453473,-500.0,0.0003041,6]
[322925859,1713521453482,-522.63265422,0.0003041,6]
[322925860,1713521453491,-500.0,0.0003041,6]
[322925861,1713521453500,-500.0,0.0003041,6]
[322925862,1713521453510,-1916.95,0.0003041,6]
[322925863,1713521453519,-500.0,0.0003041,6]
[322925864,1713521453528,-533.89658424,0.0003041,6]
[322925865,1713521453537,-500.0,0.0003041,6]
[322925866,1713521453546,-500.0,0.0003041,6]
[322925867,1713521453556,-521.33013556,0.0003041,6]
[322925868,1713521453565,-500.0,0.0003041,6]
[322925869,1713521453574,-511.92779999,0.0003041,6]
[322925870,1713521453584,-870.05,0.0003041,6]
[322925871,1713521453594,-500.0,0.0003041,6]
[322925872,1713521453603,-500.0,0.0003041,6]
[322925873,1713521453614,-500.0,0.0003041,6]
[322925874,1713521453624,-500.0,0.0003041,6]
[322925875,1713521453633,-9200.44,0.0003041,6]
[322925876,1713521453642,-500.0,0.0003041,6]
[322925877,1713521453652,-500.0,0.0003041,6]
[322925878,1713521453661,-517.39395341,0.0003041,6]
[322925879,1713521453670,-500.0,0.0003041,6]
[322925880,1713521453679,-23353.07,0.0003041,6]
[322925881,1713521453688,-500.0,0.0003041,6]
[322925882,1713521453698,-867.31,0.0003041,6]
[322925883,1713521453706,-500.0,0.0003041,6]
[322925884,1713521453715,-899.16,0.0003041,6]
[322925885,1713521453724,-885.61,0.0003041,6]
[322925886,1713521453733,-500.0,0.0003041,6]
[322925887,1713521453742,-1449.07,0.0003041,6]
[322925888,1713521453751,-500.0,0.0003041,6]
[322925889,1713521453760,-678.49,0.0003041,6]
[322925890,1713521453769,-1185.22,0.0003041,6]
[322925891,1713521453779,-500.0,0.0003041,6]
[322925892,1713521453788,-500.0,0.0003041,6]
[322925893,1713521453797,-532.31249271,0.0003041,6]
[322925894,1713521453806,-19816.12,0.0003041,6]
[322925895,1713521453815,-500.0,0.0003041,6]
[322925896,1713521453824,-698.8,0.0003041,6]
[322925897,1713521453835,-500.0,0.0003041,6]
[322925898,1713521453845,-500.0,0.0003041,6]
[322925899,1713521453855,-864.04,0.0003041,6]
[322925900,1713521453864,-500.0,0.0003041,6]
[322925901,1713521453874,-500.0,0.0003041,6]
[322925902,1713521453885,-500.0,0.0003041,6]
[322925903,1713521453895,-500.0,0.0003041,6]
[322925904,1713521453905,-496.43536663,0.0003041,6]
[322925905,1713521453914,-206.99836847,0.0003041,6]
[322925906,1713521453923,-1553.11,0.0003041,6]
[322925907,1713521453932,-500.0,0.0003041,6]
[322925908,1713521453941,-645.25,0.0003041,6]
[322925909,1713521453951,-500.0,0.0003041,6]
[322925910,1713521453961,-500.0,0.0003041,6]
[322925911,1713521453971,-500.0,0.0003041,6]
[322925912,1713521453980,-500.0,0.0003041,6]
[322925913,1713521453989,-500.0,0.0003041,6]
[322925914,1713521453998,-654.09,0.0003041,6]
[322925915,1713521454007,-500.0,0.0003041,6]
[322925916,1713521454016,-500.0,0.0003041,6]
[322925917,1713521454026,-500.0,0.0003041,6]
[322925918,1713521454035,-500.0,0.0003041,6]
[322925919,1713521454044,-9550.41,0.0003041,6]
[322925920,1713521454054,-500.0,0.0003041,6]
[322925921,1713521454063,-692.24,0.0003041,6]
[322925922,1713521454072,-850.92,0.0003041,6]
[322925923,1713521454081,-500.0,0.0003041,6]
[322925924,1713521454091,-500.0,0.0003041,6]
[322925925,1713521454100,-500.0,0.0003041,6]
[322925926,1713521454109,-500.0,0.0003041,6]
[322925927,1713521454118,-500.0,0.0003041,6]
[322925928,1713521454127,-504.74,0.0003041,6]
[322925929,1713521454136,-500.0,0.0003041,6]
[322925930,1713521454146,-500.0,0.0003041,6]
[322925931,1713521454155,-500.0,0.0003041,6]
[322925932,1713521454164,-580.40133778,0.0003041,6]
[322925933,1713521454173,-609.00716058,0.0003041,6]
[322925934,1713521454183,-1506.99,0.0003041,6]
[322925935,1713521454192,-635.51,0.0003041,6]
[322925936,1713521454201,-1200.14,0.0003041,6]
[322925937,1713521454210,-930.14,0.0003041,6]
[322925938,1713521454219,-645.19,0.0003041,6]
[322925939,1713521454228,-500.0,0.0003041,6]
[322925940,1713521454236,-500.0,0.0003041,6]
[322925941,1713521454246,-579.94,0.0003041,6]
[322925942,1713521454255,-500.0,0.0003041,6]
[322925943,1713521454264,-2690.75,0.0003041,6]
[322925944,1713521454274,-9114.6,0.0003041,6]
[322925945,1713521454282,-878.71,0.0003041,6]
[322925946,1713521454291,-500.0,0.0003041,6]
[322925947,1713521454300,-500.0,0.0003041,6]
[322925948,1713521454310,-500.0,0.0003041,6]
[322925949,1713521454319,-500.0,0.0003041,6]
[322925950,1713521454328,-784.52,0.0003041,6]
[322925951,1713521454339,-500.0,0.0003041,6]
[322925952,1713521454348,-500.0,0.0003041,6]
[322925953,1713521454357,-500.0,0.0003041,6]
[322925954,1713521454367,-500.0,0.0003041,6]
[322925955,1713521454376,-1012.92,0.0003041,6]
[322925956,1713521454385,-500.0,0.0003041,6]
[322925957,1713521454394,-500.0,0.0003041,6]
[322925958,1713521454403,-500.0,0.0003041,6]
[322925959,1713521454412,-9848.26,0.0003041,6]
[322925960,1713521454421,-500.0,0.0003041,6]
[322925961,1713521454430,-500.0,0.0003041,6]
[322925962,1713521454439,-500.0,0.0003041,6]
[322925963,1713521454448,-500.0,0.0003041,6]
[322925964,1713521454457,-500.0,0.0003041,6]
[322925965,1713521454466,-500.0,0.0003041,6]
[322925966,1713521454476,-500.0,0.0003041,6]
[322925967,1713521454485,-500.0,0.0003041,6]
[322925968,1713521454494,-1000.2,0.0003041,6]
[322925969,1713521454503,-500.0,0.0003041,6]
[322925970,1713521454512,-500.0,0.0003041,6]
[322925971,1713521454522,-6785.07,0.0003041,6]
[322925972,1713521454531,-619.15215771,0.0003041,6]
[322925973,1713521454540,-500.0,0.0003041,6]
[322925974,1713521454550,-500.0,0.0003041,6]
[322925975,1713521454559,-523.51,0.0003041,6]
[322925976,1713521454568,-305.94110668,0.0003041,6]
[322925977,1713521454577,-500.0,0.0003041,6]
[322925978,1713521454588,-500.0,0.0003041,6]
[322925979,1713521454597,-500.0,0.0003041,6]
[322925980,1713521454606,-500.0,0.0003041,6]
[322925981,1713521454616,-505.28,0.0003041,6]
[322925982,1713521454625,-1257.43,0.0003041,6]
[322925983,1713521454634,-500.0,0.0003041,2]
[322925984,1713521454644,-500.0,0.0003041,6]
[322925985,1713521454653,-500.0,0.0003041,2]
[322925986,1713521454662,-500.0,0.0003041,6]
[322925987,1713521454671,-500.0,0.0003041,6]
[322925988,1713521454681,-500.0,0.0003041,6]
[322925989,1713521454690,-382.91623739,0.0003041,6]
[322925990,1713521454699,-500.0,0.0003041,6]
[322925991,1713521454708,-507.98332244,0.0003041,6]
[322925992,1713521454717,-500.0,0.0003041,6]
[322925993,1713521454726,-500.0,0.0003041,6]
[322925994,1713521454735,-500.0,0.0003041,6]
[322925995,1713521454744,-500.0,0.0003041,6]
[322925996,1713521454754,-500.0,0.00030465,2]
[322925997,1713521454763,-499.99,0.000305,6]
[322925998,1713521454773,-2426.757107,0.000305,4]
[322925999,1713521454782,-500.0,0.0003052,2]
[322926000,1713521454791,-500.0,0.00030575,2]
[322926001,1713521454800,-166.666666,0.00030603,2]
[322926002,1713521454809,-500.0,0.0003063,2]
[322926003,1713521454819,-500.0,0.00030684,6]
[322926004,1713521454827,-488.54091573,0.00030684,6]
[322926005,1713521454838,-500.0,0.00030684,6]
[322926006,1713521454847,-536.57642665,0.00030684,6]
[322926007,1713521454856,-500.0,0.00030684,6]
[322926008,1713521454866,-500.0,0.00030684,6]
[322926009,1713521454875,-545.12169436,0.00030684,6]
[322926010,1713521454888,-576.78212847,0.00030684,6]
[322926011,1713521454897,-500.0,0.00030684,6]
[322926012,1713521454907,-500.0,0.00030684,6]
[322926013,1713521454916,-1043.79,0.00030684,6]
[322926014,1713521454926,-500.0,0.00030684,6]
[322926015,1713521454935,-622.02,0.00030684,6]
[322926016,1713521454945,-500.0,0.00030684,6]
[322926017,1713521454955,-500.0,0.00030684,6]
[322926018,1713521454965,-522.21988316,0.00030684,6]
[322926019,1713521454975,-500.0,0.00030684,6]
[322926020,1713521454984,-528.15216956,0.00030684,6]
[322926021,1713521454994,-500.0,0.00030684,6]
[322926022,1713521455003,-1246.43,0.00030684,6]
[322926023,1713521455012,-522.98311537,0.00030684,6]
[322926024,1713521455021,-258.29583559,0.00030684,6]
[322926025,1713521455030,-500.0,0.00030684,6]
[322926026,1713521455039,-500.0,0.00030684,6]
[322926027,1713521455050,-500.0,0.00030684,6]
[322926028,1713521455059,-500.0,0.00030684,6]
[322926029,1713521455068,-500.0,0.00030684,6]
[322926030,1713521455078,-500.0,0.00030684,6]
[322926031,1713521455088,-500.0,0.00030684,6]
[322926032,1713521455097,-500.0,0.00030684,6]
[322926033,1713521455106,-500.0,0.00030684,6]
[322926034,1713521455115,-500.0,0.00030684,6]
[322926035,1713521455125,-500.0,0.00030684,6]
[322926036,1713521455134,-500.0,0.00030684,6]
[322926037,1713521455144,-500.0,0.00030684,6]
[322926038,1713521455153,-500.0,0.00030684,6]
[322926039,1713521455162,-500.0,0.00030684,6]
[322926040,1713521455171,-504.26550487,0.00030684,6]
[322926041,1713521455180,-500.0,0.00030684,6]
[322926042,1713521455189,-500.0,0.00030684,6]
[322926043,1713521455198,-500.0,0.00030684,6]
[322926044,1713521455207,-513.45961068,0.00030684,6]
[322926045,1713521455215,-500.0,0.00030684,6]
[322926046,1713521455224,-2000.0,0.00030684,2]
[322926047,1713521455233,-1793.42,0.00030684,6]
[322926048,1713521455242,-500.0,0.00030684,6]
[322926049,1713521455251,-518.14519704,0.00030684,6]
[322926050,1713521455260,-500.0,0.00030684,6]
[322926051,1713521455269,-503.72715404,0.00030684,6]
[322926052,1713521455278,-2300.96,0.00030684,6]
[322926053,1713521455287,-831.4,0.00030684,6]
[322926054,1713521455296,-500.0,0.00030684,6]
[322926055,1713521455306,-500.0,0.00030684,6]
[322926056,1713521455315,-403.94125033,0.00030684,6]
[322926057,1713521455324,-507.38235544,0.00030684,6]
[322926058,1713521455334,-651.15,0.00030684,6]
[322926059,1713521455343,-500.0,0.00030684,6]
[322926060,1713521455352,-500.0,0.00030684,6]
[322926061,1713521455362,-500.0,0.00030684,6]
[322926062,1713521455372,-500.0,0.00030684,6]
[322926063,1713521455381,-500.0,0.00030684,6]
[322926064,1713521455390,-500.0,0.00030684,6]
[322926065,1713521455399,-218.23793308,0.00030684,6]
[322926066,1713521455408,-500.0,0.00030684,6]
[322926067,1713521455418,-500.0,0.00030684,6]
[322926068,1713521455427,-947.17,0.00030684,6]
[322926069,1713521455436,-565.08,0.00030684,6]
[322926070,1713521455446,-500.0,0.00030684,6]
[322926071,1713521455455,-507.5066551,0.00030684,6]
[322926072,1713521455464,-500.0,0.00030684,6]
[322926073,1713521455473,-500.0,0.00030684,6]
[322926074,1713521455483,-500.0,0.00030684,6]
[322926075,1713521455492,-500.0,0.00030684,6]
[322926076,1713521455501,-500.0,0.00030684,6]
[322926077,1713521455510,-500.0,0.00030684,6]
[322926078,1713521455520,-500.0,0.00030684,6]
[322926079,1713521455529,-548.38540597,0.00030684,6]
[322926080,1713521455539,-500.0,0.00030684,6]
[322926081,1713521455548,-500.0,0.00030684,6]
[322926082,1713521455558,-500.0,0.00030684,6]
[322926083,1713521455567,-500.0,0.00030684,6]
[322926084,1713521455577,-503.54,0.00030684,6]
[322926085,1713521455588,-611.76,0.00030684,6]
[322926086,1713521455597,-500.0,0.00030684,6]
[322926087,1713521455606,-1493.79,0.00030684,6]
[322926088,1713521455615,-500.0,0.00030684,6]
[322926089,1713521455625,-500.0,0.00030684,6]
[322926090,1713521455635,-189.21463355,0.00030684,6]
[322926091,1713521455645,-500.0,0.00030684,6]
[322926092,1713521455654,-500.0,0.00030684,6]
[322926093,1713521455664,-500.0,0.00030684,6]
[322926094,1713521455674,-607.11987287,0.00030684,6]
[322926095,1713521455683,-1116.0,0.00030684,6]
[322926096,1713521455693,-705.28,0.00030684,6]
[322926097,1713521455703,-500.0,0.00030684,6]
[322926098,1713521455712,-500.0,0.00030684,6]
[322926099,1713521455721,-1441.55,0.00030684,6]
[322926100,1713521455730,-500.0,0.00030684,6]
[322926101,1713521455740,-824.57,0.00030684,6]
[322926102,1713521455749,-1071.4,0.00030684,6]
[322926103,1713521455758,-765.99,0.00030684,6]
[322926104,1713521455767,-500.0,0.00030684,6]
[322926105,1713521455777,-1082.04,0.00030684,6]
[322926106,1713521455786,-500.0,0.00030684,6]
[322926107,1713521455796,-500.0,0.00030684,6]
[322926108,1713521455806,-500.0,0.00030684,6]
[322926109,1713521455815,-500.0,0.00030684,6]
[322926110,1713521455825,-568.13,0.00030684,6]
[322926111,1713521455835,-500.0,0.00030684,6]
[322926112,1713521455844,-841.66,0.00030684,6]
[322926113,1713521455854,-500.0,0.00030684,6]
[322926114,1713521455864,-225.62396713,0.00030684,6]
[322926115,1713521455874,-500.0,0.00030684,6]
[322926116,1713521455887,-500.0,0.00030684,6]
[322926117,1713521455896,-306.89687779,0.00030684,6]
[322926118,1713521455905,-500.0,0.00030684,6]
[322926119,1713521455915,-500.0,0.00030684,6]
[322926120,1713521455925,-500.0,0.00030684,6]
[322926121,1713521455934,-500.0,0.00030684,6]
[322926122,1713521455943,-516.0759012,0.00030684,6]
[322926123,1713521455952,-500.0,0.00030684,6]
[322926124,1713521455961,-500.0,0.00030684,6]
[322926125,1713521455970,-1916.95,0.00030684,6]
[322926126,1713521455980,-500.0,0.00030684,6]
[322926127,1713521455989,-500.0,0.00030684,6]
[322926128,1713521455998,-500.0,0.00030684,6]
[322926129,1713521456008,-870.05,0.00030684,6]
[322926130,1713521456017,-500.0,0.00030684,6]
[322926131,1713521456025,-500.0,0.00030684,6]
[322926132,1713521456035,-500.0,0.00030684,6]
[322926133,1713521456044,-500.0,0.00030684,6]
[322926134,1713521456053,-9200.44,0.00030684,6]
[322926135,1713521456177,-500.0,0.00030684,6]
[322926136,1713521456187,-500.0,0.00030684,6]
[322926137,1713521456196,-500.0,0.00030684,6]
[322926138,1713521456205,-23353.07,0.00030684,6]
[322926139,1713521456215,-178.92246702,0.00030684,6]
[322926140,1713521456224,-867.31,0.00030684,6]
[322926141,1713521456233,-500.0,0.00030684,6]
[322926142,1713521456242,-899.16,0.00030684,6]
[322926143,1713521456251,-885.61,0.00030684,6]
[322926144,1713521456262,-500.0,0.00030684,6]
[322926145,1713521456271,-1449.07,0.00030684,6]
[322926146,1713521456281,-531.92932809,0.00030684,6]
[322926147,1713521456290,-678.49,0.00030684,6]
[322926148,1713521456299,-1185.22,0.00030684,6]
[322926149,1713521456309,-500.0,0.00030684,6]
[322926150,1713521456318,-500.0,0.00030684,6]
[322926151,1713521456327,-19816.12,0.00030684,6]
[322926152,1713521456337,-500.0,0.00030684,6]
[322926153,1713521456346,-698.8,0.00030684,6]
[322926154,1713521456355,-500.0,0.00030684,6]
[322926155,1713521456364,-864.04,0.00030684,6]
[322926156,1713521456373,-500.0,0.00030684,6]
[322926157,1713521456383,-500.0,0.00030684,6]
[322926158,1713521456392,-582.73959232,0.00030684,6]
[322926159,1713521456401,-500.0,0.00030684,6]
[322926160,1713521456410,-1553.11,0.00030684,6]
[322926161,1713521456420,-500.0,0.00030684,6]
[322926162,1713521456429,-645.25,0.00030684,6]
[322926163,1713521456438,-500.0,0.00030684,6]
[322926164,1713521456447,-500.0,0.00030684,6]
[322926165,1713521456456,-500.0,0.00030684,6]
[322926166,1713521456466,-500.0,0.00030684,6]
[322926167,1713521456476,-500.0,0.00030684,6]
[322926168,1713521456486,-654.09,0.00030684,6]
[322926169,1713521456496,-500.0,0.00030684,6]
[322926170,1713521456506,-500.0,0.00030684,6]
[322926171,1713521456515,-500.0,0.00030684,6]
[322926172,1713521456525,-9550.41,0.00030684,6]
[322926173,1713521456535,-500.0,0.00030684,6]
[322926174,1713521456544,-500.0,0.00030684,6]
[322926175,1713521456554,-692.24,0.00030684,6]
[322926176,1713521456563,-850.92,0.00030684,6]
[322926177,1713521456573,-500.0,0.00030684,6]
[322926178,1713521456583,-500.0,0.00030684,6]
[322926179,1713521456592,-500.0,0.00030684,6]
[322926180,1713521456602,-500.0,0.00030684,6]
[322926181,1713521456611,-500.0,0.00030684,6]
[322926182,1713521456621,-504.74,0.00030684,6]
[322926183,1713521456631,-500.0,0.00030684,6]
[322926184,1713521456640,-500.0,0.00030684,6]
[322926185,1713521456649,-500.0,0.00030684,6]
[322926186,1713521456659,-1506.99,0.00030684,6]
[322926187,1713521456669,-635.51,0.00030684,6]
[322926188,1713521456678,-1200.14,0.00030684,6]
[322926189,1713521456687,-930.14,0.00030684,6]
[322926190,1713521456697,-645.19,0.00030684,6]
[322926191,1713521456706,-500.0,0.00030684,6]
[322926192,1713521456716,-500.0,0.00030684,6]
[322926193,1713521456725,-579.94,0.00030684,6]
[322926194,1713521456734,-500.0,0.00030684,6]
[322926195,1713521456743,-2690.75,0.00030684,6]
[322926196,1713521456754,-9114.6,0.00030684,6]
[322926197,1713521456763,-878.71,0.00030684,6]
[322926198,1713521456773,-500.0,0.00030684,6]
[322926199,1713521456782,-551.8662616,0.00030684,6]
[322926200,1713521456792,-500.0,0.00030684,6]
[322926201,1713521456802,-225.49435166,0.00030684,6]
[322926202,1713521456811,-784.52,0.00030684,6]
[322926203,1713521456821,-500.0,0.00030684,6]
[322926204,1713521456831,-500.0,0.00030684,6]
[322926205,1713521456840,-330.94417313,0.00030684,6]
[322926206,1713521456849,-607.10317025,0.00030684,6]
[322926207,1713521456858,-1012.92,0.00030684,6]
[322926208,1713521456867,-500.0,0.00030684,6]
[322926209,1713521456876,-500.0,0.00030684,6]
[322926210,1713521456887,-504.12376608,0.00030684,6]
[322926211,1713521456897,-9848.26,0.00030684,6]
[322926212,1713521456906,-500.0,0.00030684,6]
[322926213,1713521456915,-500.0,0.00030684,6]
[322926214,1713521456925,-500.0,0.00030684,6]
[322926215,1713521456935,-500.0,0.00030684,6]
[322926216,1713521456944,-500.0,0.00030684,6]
[322926217,1713521456954,-500.0,0.00030684,6]
[322926218,1713521456965,-520.02274252,0.00030684,6]
[322926219,1713521456974,-191.52375137,0.00030684,6]
[322926220,1713521456983,-1000.2,0.00030684,6]
[322926221,1713521456992,-500.0,0.00030684,6]
[322926222,1713521457001,-500.0,0.00030684,6]
[322926223,1713521457010,-6785.07,0.00030684,6]
[322926224,1713521457019,-407.72420238,0.00030684,6]
[322926225,1713521457028,-500.0,0.00030684,6]
[322926226,1713521457038,-523.51,0.00030684,6]
[322926227,1713521457047,-519.62260279,0.00030684,6]
[322926228,1713521457056,-500.0,0.00030684,6]
[322926229,1713521457066,-500.69261404,0.00030684,6]
[322926230,1713521457075,-529.83128656,0.00030684,6]
[322926231,1713521457085,-505.28,0.00030684,6]
[322926232,1713521457094,-1257.43,0.00030684,6]
[322926233,1713521457103,-500.0,0.00030684,2]
[322926234,1713521457113,-500.0,0.00030684,6]
[322926235,1713521457122,-500.0,0.00030684,2]
[322926236,1713521457132,-500.0,0.00030684,6]
[322926237,1713521457141,-500.0,0.00030684,6]
[322926238,1713521457150,-500.0,0.00030684,6]
[322926239,1713521457160,-500.0,0.00030684,6]
[322926240,1713521457169,-500.0,0.00030684,6]
[322926241,1713521457178,-525.04823652,0.00030684,6]
[322926242,1713521457188,-500.0,0.00030684,6]
[322926243,1713521457198,-500.0,0.00030684,6]
[322926244,1713521457207,-1000.0,0.00030688,2]
[322926245,1713521457216,-500.0,0.00030739,2]
[322926246,1713521457225,-500.0,0.00030794,2]
[322926247,1713521457234,-188.20788552,0.00030849,2]
[322926248,1713521457244,-1000.0,0.0003089,2]
[322926249,1713521457253,-2000.0,0.000309,3]
[322926250,1713521457262,-2000.0,0.000309,3]
[322926251,1713521457272,-2000.0,0.000309,3]
[322926252,1713521457281,-400.0,0.00030927,35]
[322926253,1713521457290,-156.0,0.00030927,35]
[322926254,1713521457300,-400.0,0.00030937,35]
[322926255,1713521457309,-156.0,0.00030937,35]
[322926256,1713521457319,-400.0,0.00030947,35]
[322926257,1713521457328,-156.0,0.00030947,35]
[322926258,1713521457339,-260734.02898997,0.00030957,3]
[322926259,1713521457349,-500.05098447,0.00030957,3]
[322926260,1713521457358,-4850.39115556,0.00030958,5]
[322926261,1713521457367,-500.0,0.00030958,7]
[322926262,1713521457378,-500.0,0.00030958,6]
[322926263,1713521457387,-500.0,0.00030958,6]
[322926264,1713521457396,-500.0,0.00030958,6]
[322926265,1713521457406,-500.0,0.00030958,6]
[322926266,1713521457415,-500.0,0.00030958,6]
[322926267,1713521457424,-500.0,0.00030958,6]
[322926268,1713521457433,-1043.79,0.00030958,6]
[322926269,1713521457443,-500.0,0.00030958,6]
[322926270,1713521457452,-622.02,0.00030958,6]
[322926271,1713521457462,-500.0,0.00030958,6]
[322926272,1713521457471,-500.0,0.00030958,6]
[322926273,1713521457481,-240.05681404,0.00030958,6]
[322926274,1713521457490,-500.0,0.00030958,6]
[322926275,1713521457499,-1246.43,0.00030958,6]
[322926276,1713521457509,-500.0,0.00030958,6]
[322926277,1713521457518,-235.47846272,0.00030958,6]
[322926278,1713521457527,-500.0,0.00030958,6]
[322926279,1713521457536,-500.0,0.00030958,6]
[322926280,1713521457547,-500.0,0.00030958,6]
[322926281,1713521457557,-513.20450977,0.00030958,6]
[322926282,1713521457566,-378.7645459,0.00030958,6]
[322926283,1713521457576,-500.0,0.00030958,6]
[322926284,1713521457586,-500.0,0.00030958,6]
[322926285,1713521457596,-500.0,0.00030958,6]
[322926286,1713521457605,-494.39572033,0.00030958,6]
[322926287,1713521457614,-500.0,0.00030958,6]
[322926288,1713521457623,-500.0,0.00030958,6]
[322926289,1713521457632,-500.0,0.00030958,6]
[322926290,1713521457641,-500.0,0.00030958,6]
[322926291,1713521457650,-602.02155937,0.00030958,6]
[322926292,1713521457659,-500.0,0.00030958,6]
[322926293,1713521457669,-500.0,0.00030958,6]